[Event "Polish Youth B18 Championship 2023"]
[Site "Jastrzebia Gora"]
[Date "2023.03.12"]
[Round "1.5"]
[White "Pisarek, Jan"]
[Black "Czernek, Tymon"]
[Result "1/2-1/2"]
[ECO "B50"]
[WhiteElo "1931"]
[BlackElo "2314"]
[Annotator "TA"]
[PlyCount "202"]
[EventDate "2023.03.11"]
[EventType "swiss"]
[EventCountry "POL"]
[SourceTitle "playchess.com"]
[Source "ChessBase"]
[SourceQuality "1"]
[TimeControl "40/5400+30:1800+30"]

{[%evp 11,202,-6,-8,-12,-10,-15,-11,-30,0,0,-5,-17,17,22,25,0,22,10,34,-3,20,0,0,-9,-1,-9,-14,-23,-5,-5,-5,-11,-7,-33,0,0,0,0,20,0,0,0,0,1,98,92,121,98,68,58,59,63,63,58,60,46,56,65,103,104,89,17,18,0,0,0,0,-144,0,0,0,0,0,0,0,-54,-14,-14,0,0,0,0,0,0,0,0,0,0,0,-82,0,-82,-82,-82,-82,-82,-82,-82,-82,-82,-82,-82,0,0,0,-25,0,-39,0,0,0,0,0,0,0,-2,-2,-2,-2,-10,-17,-8,0,-20,-20,-46,-62,-62,-69,-98,0,0,0,0,0,0,0,0,-20,-35,0,0,0,0,0,0,0,0,0,0,0,0,0,0,0,0,0,0,0,0,0,0,0,0,0,-83,0,0,0,0,0,0,0,0,0,0,0,0,0,0,0,0,0,0,0,0,0,0,0,0,0,0,0]} 1. e4 {[%emt 0:00:05]} c5 {[%emt 0:00:07]} 2. Nf3 {[%emt 0:00:09]} d6 {[%emt 0:00:06]} 3. c3 {[%emt 0:00:11]} Nf6 {[%emt 0:00:07]} 4. Be2 {[%emt 0:00:17]} g6 {[%emt 0:00:14]} 5. O-O {[%emt 0:00:42]} Bg7 {[%emt 0:00:05]} 6. d3 {[%emt 0:12:48]} O-O {[%emt 0:00:14]} 7. Be3 {[%emt 0:02:22]} Nc6 {[%emt 0:03:10]} 8. Nbd2 {[%emt 0:09:04]} e5 {[%emt 0:05:52]} 9. d4 {[%emt 0:16:24]} cxd4 {[%emt 0:05:58]} 10. cxd4 {[%emt 0:00:23]} exd4 {[%emt 0:00:46]} 11. Nxd4 {[%emt 0:03:38]} Qe7 {[%emt 0:00:07]} 12. Nxc6 {[%emt 0:12:34]} bxc6 {[%emt 0:00:08]} 13. Qc2 {[%emt 0:00:34]} Re8 {[%emt 0:06:13]} 14. Rad1 {[%emt 0:17:40]} Bb7 {[%emt 0:03:12]} 15. Bf3 {[%emt 0:06:31]} d5 {[%emt 0:02:57]} 16. exd5 {[%emt 0:01:09]} cxd5 {[%emt 0:01:06]} 17. Nb3 {[%emt 0:02:45]} Rac8 {[%emt 0:02:27]} 18. Qd3 {[%emt 0:02:47]} Ne4 {[%emt 0:02:47]} 19. Bd4 {[%emt 0:01:12]} Bxd4 {[%emt 0:03:18]} 20. Nxd4 {[%emt 0:00:35]} Qf6 {[%emt 0:02:49] [#] aiming for ...Ba6.} 21. Rfe1 {[%emt 0:01:17]} Ba6 {[%emt 0:02:33]} 22. Qb1 {[%emt 0:03:33]} Nc5 {[%emt 0:04:13] And now ...Rxe1+ would win.} (22... Nxf2 {looks sharper.} 23. Rxe8+ Rxe8 24. Kxf2 Re4) 23. Rxe8+ {[%emt 0:00:53]} (23. Bxd5 $2 Rxe1+ 24. Rxe1 Qxd4 $19) 23... Rxe8 {[%emt 0:00:02]} 24. h3 {[%emt 0:01:20]} (24. Bxd5 $2 Bd3 25. Qa1 Qxd4 $19) 24... Ne4 {[%emt 0:04:32]} 25. Qc2 {[%emt 0:02:13]} Rc8 {[%emt 0:02:46]} 26. Qb3 {[%emt 0:00:07]} Bc4 {[%emt 0:01:25]} 27. Qb7 {[%emt 0:00:31]} Re8 {[%emt 0:00:25]} (27... Qa6 $1 $11 28. Qxa6 Bxa6) 28. Qxa7 $16 {[%emt 0:01:11]} Kg7 {[%emt 0:08:33]} 29. Qa5 {[%emt 0:00:48]} Ng5 {[%emt 0:04:15]} 30. b3 {[%emt 0:00:46]} (30. Bxd5 $2 Re5 31. Qc3 (31. Nc6 $2 Nxh3+ {[%mdl 64] Clearance} 32. gxh3 Qg5+ 33. Kh2 Bxd5 $19) 31... Bxd5 $19) 30... Nxf3+ {[%emt 0:01:35][%mdl 64] [#] Remove Defender} 31. Nxf3 {[%emt 0:00:04][%cal Bd4f3,Bf3d2,Bd2c4][%mdl 32]} Be2 {[%emt 0:00:08][%csl LRd1,LRf3]} 32. Re1 {[%emt 0:01:08] Hoping for Qd2.} ({Don't play} 32. Rxd5 Bxf3 33. gxf3 Qxf3 $11) 32... d4 {[%emt 0:00:43]} 33. Nd2 {[%emt 0:00:41]} d3 {[%emt 0:00:45]} 34. Nc4 {[%emt 0:00:17]} Qf4 {[%emt 0:01:26]} 35. Qc3+ {[%emt 0:00:34]} Kg8 {[%emt 0:01:45]} 36. a4 {[%emt 0:00:30]} (36. Rc1 $16) 36... Rc8 $1 $11 {[%emt 0:05:20][%cal Oc8c4]} 37. a5 {[%emt 0:00:40]} (37. g3 $5 {[%cal Rg3f4]} Qf5 38. h4 $14) 37... Rxc4 $1 {[%emt 0:00:47]} 38. bxc4 {[%emt 0:00:28][%mdl 4096] Endgame KQR-KQB} ({But not} 38. Qxc4 Qxc4 39. bxc4 d2 $19) 38... d2 {[%emt 0:00:33][%cal Of4d4]} 39. Ra1 {[%emt 0:00:33]} (39. a6 $11 dxe1=N 40. Qxe1 Bxc4 41. a7) 39... d1=Q+ {[%emt 0:00:15]} (39... d1=B $2 40. a6 Qxc4 41. Qf6 $18) ({Much weaker is} 39... d1=R+ $6 40. Rxd1 Bxd1 41. Qa1 $11) ({Black should try} 39... Qd6 $17 40. Qb3 Qd4 41. Qb8+ Kg7) 40. Rxd1 {[%emt 0:00:00]} Bxd1 {[%emt 0:00:00]} 41. a6 {[%emt 0:18:12]} Ba4 $1 {[%emt 0:01:02]} 42. a7 {[%emt 0:01:35]} Bc6 {[%emt 0:00:08] Threatens to win with ...Qg5.} 43. f3 (43. Qb2 $11 Qe4 44. Qb8+ Kg7 45. f3 Qxc4 46. a8=Q Bxa8 47. Qxa8) 43... h5 {[%emt 0:03:03]} 44. Qa5 {[%emt 0:04:26]} Qe3+ {[%emt 0:00:48]} 45. Kh2 {[%emt 0:00:41]} Qe8 {[%emt 0:01:02]} 46. Qc7 {[%emt 0:00:39]} Qa8 {[%emt 0:02:20]} 47. Qb8+ {[%emt 0:02:35]} Kg7 {[%emt 0:00:07]} 48. h4 {[%emt 0:00:24]} Qb7 {[%emt 0:00:25]} 49. Qe5+ {[%emt 0:03:26]} Kh7 {[%emt 0:00:32]} 50. Qb8 {[%emt 0:00:04]} (50. Qd6 $1 $11) 50... Qa6 {[%emt 0:03:01]} (50... Qe7 $17) 51. Kg1 (51. Kg3 $11 {remains equal.}) 51... Qxc4 $17 {[%emt 0:05:29]} 52. a8=Q {[%emt 0:03:25][%csl Ga8][%cal Rb8h8]} Qd4+ {[%emt 0:00:14]} 53. Kf1 {[%emt 0:00:34] White wants to mate with Qg8+.} Bxa8 {[%emt 0:00:06]} 54. Qxa8 {[%emt 0:00:06]} Qxh4 {[%emt 0:00:04] KQ-KQ} 55. Qf8 {[%emt 0:00:55]} Qf4 {[%emt 0:00:22]} 56. Kg1 {[%emt 0:01:03]} h4 {[%emt 0:00:09]} ({Better is} 56... Qc1+ $17 57. Kf2 Qd2+ 58. Kg3 Qg5+ 59. Kh2 Qh4+ 60. Kg1 Qe1+ 61. Kh2 Qe5+ 62. Kh3 Qf4) 57. Qc8 $11 {[%emt 0:00:23]} Kg7 {[%emt 0:01:14]} 58. Qc3+ {[%emt 0:00:35]} Qf6 {[%emt 0:00:24]} 59. Qc8 {[%emt 0:00:05]} g5 {[%emt 0:00:14]} 60. Kh1 {[%emt 0:01:07]} Kg6 {[%emt 0:00:23]} 61. Qc2+ {[%emt 0:00:30]} Kh6 {[%emt 0:01:08]} 62. Qc8 {[%emt 0:00:19]} Qa1+ {[%emt 0:01:38]} 63. Kh2 {[%emt 0:00:08]} Qe5+ {[%emt 0:00:03]} 64. Kh1 {[%emt 0:00:17]} Kg6 {[%emt 0:00:10]} 65. Kg1 {[%emt 0:00:45]} Qe1+ {[%emt 0:01:01]} 66. Kh2 {[%emt 0:00:06]} Qe6 {[%emt 0:00:10]} 67. Qc2+ {[%emt 0:01:18]} Kf6 {[%emt 0:00:09]} 68. Kg1 {[%emt 0:00:36]} Qe1+ {[%emt 0:01:01]} 69. Kh2 {[%emt 0:00:03]} Qg3+ {[%emt 0:00:06]} 70. Kh1 {[%emt 0:00:31]} h3 {[%emt 0:00:49]} (70... Qe5 $17 71. Qc6+ Kg7) 71. Qc6+ {[%emt 0:00:14]} Kg7 {[%emt 0:00:09][%csl Gh3][%cal Rg3g2]} 72. gxh3 {[%emt 0:00:29]} Qxh3+ {[%emt 0:00:26]} 73. Kg1 {[%emt 0:00:04]} Qg3+ {[%emt 0:00:21]} 74. Kf1 {[%emt 0:00:23]} Qf4 {[%emt 0:00:17]} 75. Kg2 {[%emt 0:00:44]} g4 {[%emt 0:03:17]} 76. fxg4 {[%emt 0:00:43]} Qxg4+ {[%emt 0:00:18]} 77. Kf2 {[%emt 0:00:39]} Qh4+ {[%emt 0:00:07]} 78. Ke2 {[%emt 0:00:30]} Qg3 {[%emt 0:00:28]} 79. Qb7 {[%emt 0:00:53]} Qf4 {[%emt 0:01:33]} 80. Qg2+ {[%emt 0:00:59]} Kf6 {[%emt 0:00:29] ...Qc4+ is the strong threat.} 81. Qg8 {[%emt 0:00:23]} Ke7 {[%emt 0:00:52]} 82. Qa8 {[%emt 0:00:20]} Kf6 {[%emt 0:01:45]} 83. Qg8 {[%emt 0:00:13]} Qe4+ {[%emt 0:00:20]} 84. Kf2 {[%emt 0:00:30]} Ke7 85. Qb8 {[%emt 0:00:40]} Qd4+ {[%emt 0:01:47]} 86. Kf1 {[%emt 0:00:19]} Qd6 {[%emt 0:00:31]} 87. Qg8 {[%emt 0:00:56]} Qe5 {[%emt 0:02:23]} 88. Kf2 {[%emt 0:00:25]} (88. Qg4 $11) 88... f6 {[%emt 0:00:26]} ({Black should play} 88... Qf4+ $17 89. Ke2 Qe5+ 90. Kf3 Qd5+ 91. Kf4 Qd6+ 92. Ke3 Qe5+ 93. Kf2 Qf6+ 94. Kg3 Qd6+ 95. Kg4 Qe6+ 96. Kf4 Qf6+ 97. Ke4 Qh4+ 98. Ke3 Qh6+ 99. Ke4 Qe6+ 100. Kf3 Qd5+ 101. Kf2 Qf5+ 102. Kg3 Qe5+ 103. Kf3 Qc3+ 104. Ke4 Qc6+ 105. Kf4 Qf6+ 106. Ke3 Qe6+ 107. Kf2 Qf5+ 108. Ke1 Qe6+ 109. Kf2 Qf5+) 89. Qc8 {[%emt 0:00:34] The position is equal.} Kf7 {[%emt 0:00:48]} 90. Qd7+ {[%emt 0:00:23]} Kg6 {[%emt 0:00:07]} 91. Qg4+ {[%emt 0:00:18]} Kh6 {[%emt 0:00:57]} 92. Qh4+ {[%emt 0:00:15]} Kg7 {[%emt 0:00:04]} 93. Qg4+ {[%emt 0:00:08]} Kf8 {[%emt 0:00:07]} 94. Qc8+ {[%emt 0:00:38]} Ke7 {[%emt 0:00:07]} 95. Kf3 {[%emt 0:00:58]} f5 {[%emt 0:00:29]} 96. Qb7+ {[%emt 0:00:36]} Kf6 {[%emt 0:00:09]} 97. Qc6+ {[%emt 0:00:17]} Kg5 {[%emt 0:00:11]} 98. Qc1+ {[%emt 0:00:27]} f4 {[%emt 0:00:13]} 99. Qg1+ {[%emt 0:00:12]} Kf6 {[%emt 0:00:06]} 100. Qb6+ {[%emt 0:00:09]} Kf5 {[%emt 0:00:08]} 101. Qb1+ {[%emt 0:00:11]} Kg5 {Weighted Error Value: White=0.16 (very precise) /Black=0.18 (very precise)} 1/2-1/2

[Event "Polish Youth B18 Championship 2023"]
[Site "Jastrzebia Gora"]
[Date "2023.03.12"]
[Round "1.6"]
[White "Zdybel, Przemyslaw"]
[Black "Karut, Kacper"]
[Result "1-0"]
[ECO "B67"]
[WhiteElo "2268"]
[BlackElo "1904"]
[Annotator "TA"]
[PlyCount "169"]
[EventDate "2023.03.11"]
[EventType "swiss"]
[EventCountry "POL"]
[SourceTitle "playchess.com"]
[Source "ChessBase"]
[SourceQuality "1"]
[TimeControl "40/5400+30:1800+30"]

{[%evp 20,169,52,46,64,67,72,44,59,53,63,47,69,49,73,62,80,72,80,80,80,18,56,28,94,93,89,84,88,79,118,113,123,8,8,8,70,74,74,70,70,70,71,70,70,70,70,71,99,71,71,71,71,71,71,71,119,75,68,68,163,99,324,163,183,186,175,159,215,199,285,284,230,232,341,341,341,341,341,334,334,296,266,277,247,231,327,320,304,297,530,533,5065,5043,2521,1678,1171,1737,1670,1568,1164,1164,1156,0,876,607,1120,731,2114,650,621,608,599,592,29970,29971,29973,29976,29976,29977,29978,29979,29983,29978,29978,29979,29979,29978,29979,29978,29977,29977,29978,29979,29979,29977,29980,29981,29981,29982,29982,29983,29986,29987,29987,29979,29979,29980,29980,29981,29981,29982]} 1. e4 {[%emt 0:00:32]} c5 {[%emt 0:00:03]} 2. Nc3 {[%emt 0:00:07]} Nc6 {[%emt 0:00:08]} 3. Nge2 {[%emt 0:00:40]} d6 {[%emt 0:00:58]} 4. d4 {[%emt 0:00:16]} cxd4 {[%emt 0:00:05]} 5. Nxd4 {[%emt 0:00:04]} Nf6 {[%emt 0:00:05]} 6. Bg5 {[%emt 0:00:11]} e6 {[%emt 0:00:26]} 7. Qd2 {[%emt 0:00:37]} a6 {[%emt 0:00:21]} 8. O-O-O {[%emt 0:00:25]} Bd7 {[%emt 0:00:14]} 9. f4 {[%emt 0:00:38][%cal Bf2f4,Bf4f5][%mdl 32]} b5 {[%emt 0:00:25]} 10. Bxf6 {[%emt 0:01:11]} gxf6 {[%emt 0:00:10]} 11. Kb1 {[%emt 0:02:15]} b4 {[%emt 0:02:28] White must now prevent ...Nxd4. B67: Sicilian: Richter-Rauzer: 7...a6 8 0-0-0 Bd7, lines without 9 f4 Be7.} 12. Nce2 {[%emt 0:00:13] White is more active.} Qb6 {[%emt 0:00:31]} 13. f5 {[%emt 0:05:34]} e5 {[%emt 0:00:06] White is slightly better.} 14. Nxc6 {[%emt 0:00:05]} Bxc6 {[%emt 0:00:05]} 15. Ng3 {[%emt 0:00:07]} h5 {[%emt 0:00:28] 15...h5 scores better than 15...Qc5.} 16. h4 {[%emt 0:00:10]} Bh6 {[%emt 0:01:09]} 17. Qxd6 {[%emt 0:00:59]} Rd8 {[%emt 0:00:28]} 18. Qxd8+ {[%emt 0:00:05]} Qxd8 {[%emt 0:00:05]} 19. Rxd8+ {[%emt 0:00:02]} Kxd8 {[%emt 0:00:06]} 20. Bxa6 {[%emt 0:47:18]} (20. Nxh5 $16 Ke7 21. Bd3 (21. Bxa6 Bxe4 22. Rd1 Bxf5 $11)) 20... Rg8 $11 {[%emt 0:01:54]} 21. Rh3 {[%emt 0:00:58]} (21. Nxh5 Ke7 $11) 21... Bf4 {[%emt 0:01:48]} (21... Ke7 $11 {remains equal.}) 22. Nxh5 $16 {[%emt 0:00:32]} Rxg2 {[%emt 0:01:34] ( -> ...Rg1+)} 23. Rh1 {[%emt 0:00:32] Repels Rg1+} (23. Nxf6 $2 Rg1+) (23. Rd3+ $6 Ke7 24. a4 Bxe4 25. Nxf4 exf4 $11) 23... Bxe4 {[%emt 0:01:02]} 24. Bd3 {[%emt 0:03:41]} Bc6 {[%emt 0:01:12]} 25. Nxf4 {[%emt 0:14:51]} (25. Nxf6 Ke7 26. Be4 Bxe4 27. Nxe4 Re2 $14) 25... Rg4 {[%emt 0:00:50] [#]} 26. Rf1 $146 {[%emt 0:04:00]} (26. Rd1 $16 {Threatens to win with Be2+.} Rxf4 27. Be4+ Kc7 28. Bxc6 Kxc6 29. Rh1 (29. h5 Rh4 $17)) ({Predecessor:} 26. Rd1 Rxf4 27. Bb5+ Kc7 28. Bxc6 Kxc6 29. Rh1 Rxf5 30. h5 e4 31. Kc1 Ra5 32. Kd2 Rxa2 {½-½ Mueller,G (2576)-Dosi,A (2551) EU-chT9 fin email 2014 [7]}) 26... exf4 $11 {[%emt 0:05:18][%mdl 4096] Endgame KRB-KRB} 27. h5 {[%emt 0:00:08]} f3 {[%emt 0:27:21]} (27... Rh4 $11) 28. Kc1 $14 {[%emt 0:01:21]} Rh4 {[%emt 0:07:29] Dodges Rh1} 29. Kd2 {[%emt 0:00:41]} Rxh5 {[%emt 0:01:01]} 30. Ke3 {[%emt 0:01:00]} Rh4 {[%emt 0:00:59]} 31. Ra1 {[%emt 0:08:15]} Kc7 {[%emt 0:19:38]} 32. a3 {[%emt 0:00:57]} bxa3 {[%emt 0:08:09]} 33. Rxa3 {[%emt 0:00:22]} Rb4 {[%emt 0:00:37]} 34. Ra7+ {[%emt 0:01:45]} Bb7 {[%emt 0:04:10]} 35. b3 {[%emt 0:03:07] aiming for Ba6.} Kb6 {[%emt 0:00:44] Repels Ba6} 36. Ra1 {[%emt 0:00:28]} Rh4 {[%emt 0:02:07]} 37. Rg1 {[%emt 0:00:49]} Kc5 {[%emt 0:04:12]} (37... Bd5 $142) 38. Rg7 {[%emt 0:00:57]} Bd5 {[%emt 0:00:29]} 39. Rg8 {[%emt 0:02:05]} Rh2 {[%emt 0:04:02] White leaves nothing to chance now.} (39... Rb4 $14) 40. Rg4 {[%emt 0:00:00]} (40. Rc8+ $18 Kd6 41. Rd8+ Ke5 42. c4) 40... Rg2 $2 {[%emt 0:00:00]} (40... Kd6 $16) 41. Rf4 {[%emt 0:05:23]} (41. Rd4 $142) 41... Kd6 $18 {[%emt 0:04:54]} 42. Kd4 $1 {[%emt 0:01:14]} Bc6 {[%emt 0:14:37]} 43. b4 {[%emt 0:01:10][%cal Bb3b4,Bb4b5][%mdl 32]} Rd2 {[%emt 0:01:45]} (43... Ba4 $16) 44. Ke3 {[%emt 0:07:25]} Rg2 {[%emt 0:03:35]} (44... Rd1 $142 45. b5 Ba8) 45. b5 {[%emt 0:00:38]} Bb7 {[%emt 0:00:57]} 46. Kd4 {[%emt 0:00:24]} Rg1 {[%emt 0:02:00]} (46... Re2 $142 47. c4 Re5) 47. c4 {[%emt 0:05:31][%cal Bc2c4,Bc4c5][%mdl 32]} Rc1 {[%emt 0:00:51]} 48. Rh4 {[%emt 0:00:24]} Ba8 {[%emt 0:02:45]} 49. Rh2 {[%emt 0:01:44]} Bb7 {[%emt 0:02:26]} 50. Bc2 {[%emt 0:00:41]} Rg1 {[%emt 0:00:56] ...Rg2 is the strong threat.} 51. c5+ {[%emt 0:00:46]} Kc7 {[%emt 0:00:38]} 52. Rf2 {[%emt 0:05:47]} ({Much less strong is} 52. b6+ $6 Kd7 $16) 52... Rg4+ {[%emt 0:00:55]} (52... Rg2 {was necessary.} 53. Ke3 Bd5) 53. Ke3 {[%emt 0:00:01]} Bd5 {[%emt 0:01:00]} 54. Rd2 {[%emt 0:01:37]} f2 $2 {[%emt 0:04:36]} (54... Bb7 {keeps fighting.} 55. c6 Bc8 56. Kxf3 Rc4) 55. Kxf2 {[%emt 0:01:28]} (55. Rxd5 {gets mated.} f1=Q 56. b6+ Kc6 57. Rd6+ Kxc5 58. Bd1 Qe1+ 59. Kd3 Qxd1+ 60. Ke3 Rg3+ 61. Kf2 Rf3+ 62. Kg2 Qf1+ 63. Kh2 Rh3#) 55... Be4 {[%emt 0:00:20]} 56. Bxe4 {[%emt 0:00:47]} Rxe4 {[%emt 0:00:02] KR-KR} 57. Rd5 {[%emt 0:00:35] And now c6 would win.} Rb4 {[%emt 0:00:20]} 58. c6 {[%emt 0:00:18] Strongly threatening Rd7+.} Kb6 {[%emt 0:01:21]} 59. Kf3 {[%emt 0:00:54]} Rc4 {[%emt 0:01:26]} 60. Ke3 {[%emt 0:02:00]} Rb4 {[%emt 0:01:08]} 61. Kf3 {[%emt 0:01:57]} Rc4 $1 {[%emt 0:00:10]} 62. Kg3 {[%emt 0:00:11]} Rb4 {[%emt 0:00:56]} 63. Rd6 {[%emt 0:00:24]} Rxb5 {[%emt 0:00:29]} 64. Rxf6 {[%emt 0:00:06]} (64. Kg4 $142 Re5 65. Rxf6) 64... Rb4 {[%emt 0:00:21]} 65. Rxf7 {[%emt 0:01:54] Intending Rb7+ and mate.} Kxc6 {[%emt 0:00:02] [#]} 66. Re7 $1 {[%emt 0:01:05]} Kd6 {[%emt 0:00:01]} 67. f6 {[%emt 0:00:51] White mates.} Rc4 {[%emt 0:00:37] [#]} 68. Re8 $1 {[%emt 0:00:26]} Rc7 {[%emt 0:01:52]} 69. Kg4 Rf7 {[%emt 0:00:32]} 70. Kf5 {[%emt 0:00:40]} Kd7 {[%emt 0:00:12]} 71. Re4 {[%emt 0:00:28]} Rf8 {[%emt 0:00:10]} 72. Rd4+ {[%emt 0:00:44]} Kc6 {[%emt 0:00:50]} 73. Rd1 {[%emt 0:00:16]} Kc7 {[%emt 0:00:20]} 74. Kg6 {[%emt 0:00:14]} Rg8+ {[%emt 0:00:06]} 75. Kf7 {[%emt 0:00:06]} Rg2 {[%emt 0:00:07]} 76. Kf8 {[%emt 0:00:04]} Rf2 {[%emt 0:00:49]} 77. f7 {[%emt 0:00:05]} Rg2 {[%emt 0:00:19]} 78. Rd4 {[%emt 0:00:06]} Kc6 {[%emt 0:01:05]} 79. Ke7 {[%emt 0:00:32]} Re2+ {[%emt 0:00:13]} 80. Kf6 {[%emt 0:00:15]} Rf2+ {[%emt 0:00:07]} 81. Ke6 {[%emt 0:00:20]} Rf1 {[%emt 0:00:16]} 82. Rd8 {[%emt 0:00:32]} Re1+ {[%emt 0:00:12]} 83. Kf6 {[%emt 0:00:10]} Rf1+ {[%emt 0:00:01]} 84. Kg6 {[%emt 0:00:06]} Rg1+ {[%emt 0:00:03]} 85. Kh5 {Weighted Error Value: White=0.16 (very precise) /Black=0.33} 1-0

[Event "Polish Youth B18 Championship 2023"]
[Site "Jastrzebia Gora"]
[Date "2023.03.12"]
[Round "1.7"]
[White "Taranowicz, Michal"]
[Black "Paprocki, Antoni"]
[Result "1-0"]
[ECO "C29"]
[WhiteElo "1900"]
[BlackElo "2255"]
[Annotator "TA"]
[PlyCount "95"]
[EventDate "2023.03.11"]
[EventType "swiss"]
[EventCountry "POL"]
[SourceTitle "playchess.com"]
[Source "ChessBase"]
[SourceQuality "1"]
[TimeControl "40/5400+30:1800+30"]

{[%evp 13,95,-13,-5,-26,-12,-8,-3,-26,-27,-33,-43,-58,-13,-38,0,-54,17,-91,-111,-137,-39,-85,-97,-97,0,0,129,0,0,13,647,0,0,0,0,-18,87,77,68,63,152,147,205,181,406,401,400,398,385,343,895,885,816,1125,1080,1064,1047,1047,1475,859,3769,991,29962,29959,29963,29965,29969,29968,29978,29982,29982,29983,29983,29984,29985,29986,29988,29989,29991,29990,29993,29994,29994,29995]} 1. e4 {[%emt 0:00:58]} e5 {[%emt 0:00:15]} 2. Nc3 {[%emt 0:00:09]} Nf6 {[%emt 0:00:07]} 3. f4 {[%emt 0:00:03]} d5 {[%emt 0:00:09]} 4. fxe5 {[%emt 0:00:05]} Nxe4 {[%emt 0:00:10]} 5. Qf3 {[%emt 0:00:03]} f5 {[%emt 0:00:16]} 6. d3 {[%emt 0:00:06]} Nxc3 {[%emt 0:00:07]} 7. bxc3 {[%emt 0:00:05]} d4 $1 {[%emt 0:00:06]} 8. Qg3 {[%emt 0:00:04] C29: Vienna Game: 2...Nf6 3 f4.} Nc6 {[%emt 0:00:23]} 9. Be2 $1 {[%emt 0:00:04]} Be6 {[%emt 0:00:19]} (9... dxc3 10. Bh5+ Kd7 11. Bf7 $16) 10. Bf3 {[%emt 0:00:48] The position is equal. 10.c4 deserves study.} Qd7 {[%emt 0:00:29]} (10... dxc3 11. Bxc6+ bxc6 12. Ne2 $11) 11. Ne2 {[%emt 0:01:01]} dxc3 {[%emt 0:03:49]} 12. O-O {[%emt 0:02:13] [#]} O-O-O $146 {[%emt 0:11:08]} (12... Bc5+ 13. Kh1 $11) ({Predecessor:} 12... Bc5+ 13. Kh1 O-O 14. Bf4 Nd4 15. Nxd4 Bxd4 16. a4 c6 17. h4 Rae8 18. Rab1 Rf7 {0-1 Seul,G (2372)-Shahade,G (2476) Titled Tuesday intern op 19th Jan blitz 2021 (7)}) 13. Be3 {[%emt 0:08:33] Repels Nd4} (13. Nxc3 $2 Qd4+ 14. Kh1 Qxc3 $19) 13... Nb4 {[%emt 0:05:24]} 14. Rfb1 {[%emt 0:12:46]} (14. Nxc3 $11 Nxc2 15. Rab1) 14... c6 {[%emt 0:06:30] [#]} ({Better is} 14... b6 $15 15. Rc1 (15. Nxc3 $2 Nxc2 16. Nb5 Kb8 $19) 15... Be7) 15. Rxb4 {[%emt 0:18:52]} Bxb4 $17 {[%emt 0:00:18]} 16. Rb1 {[%emt 0:00:03]} a5 {[%emt 0:05:08]} (16... Bxa2 $2 17. Rxb4 g5 18. Bxg5 $18) ({Black should play} 16... Qe7 $17 {White must now prevent ...Bc5.} 17. Bxa7 Bc5+ 18. Bxc5 {[%mdl 64] Remove Defender} Qxc5+ 19. d4 Rxd4 20. Nxd4 Qxd4+ 21. Kh1 Rg8) 17. a3 $1 $15 {[%emt 0:04:30][%mdl 64] Deflection} Bxa3 {[%emt 0:02:20] aiming for ...Bb4.} 18. Nxc3 {[%emt 0:00:05][%cal Be2c3,Bc3a4,Ba4c5][%mdl 32]} Bb4 {[%emt 0:16:09]} (18... Qe7 $1 $17 {Strongly threatening ...Bb4.} 19. Na4 g6) 19. Na4 $36 {[%emt 0:00:33][%mdl 2048] White is pushing.} Kb8 {[%emt 0:02:24]} (19... Qe7 $11 {keeps the balance.} 20. Bb6 g5) 20. Bb6 {[%emt 0:05:01] White is more active.} ({White has to play} 20. Qf2 $1 $16 b5 21. Bc5) 20... c5 {[%emt 0:09:44][%mdl 64] Decoy} 21. Nxc5 {[%emt 0:05:31]} Qd4+ {[%emt 0:03:47][%mdl 8192]} (21... Qb5 $11 22. Qf2 (22. Nxe6 $2 Qxb6+ 23. d4 Qxe6 $19) (22. Bc7+ Ka7 $17) 22... Bc8) 22. Qf2 $2 {[%emt 0:00:06]} (22. Kf1 $18 Bxc5 23. Bxc5 Qxc5 24. Qxg7) 22... Qxf2+ {[%emt 0:01:35]} 23. Kxf2 {[%emt 0:00:03]} Bd5 {[%emt 0:01:44][%cal Od5f3]} 24. Be2 {[%emt 0:08:27][%cal Oc5a6] [#] And now Na6+! would win.} Bc6 {[%emt 0:08:10] [#]} 25. Na6+ $1 $16 {[%emt 0:06:22]} bxa6 {[%emt 0:03:06]} 26. Bxa5 {[%emt 0:00:10]} Rd7 {[%emt 0:09:30] White stays focused until the end.} (26... Kc8 $1 $14 27. Bxb4 a5 28. Bxa5 Rd5) 27. Bxb4 {[%emt 0:00:28][%cal Od3d4]} Rb7 {[%emt 0:00:22]} (27... Kc8 $16 {was called for.}) 28. d4 $18 {[%emt 0:01:47][%mdl 1024] White has strong compensation.} a5 {[%emt 0:02:20]} (28... Rd8 {is a better defense.}) 29. Bd6+ {[%emt 0:00:16] A strong pair of Bishops.} Ka7 {[%emt 0:01:30]} 30. Ra1 {[%emt 0:00:55]} Rb2 {[%emt 0:01:46][%cal Oc6e4]} 31. d5 {[%emt 0:07:27]} ({Not} 31. Rxa5+ Kb6 32. Rc5 Be4 $16) 31... Bb5 $2 {[%emt 0:00:23]} (31... Bb7 32. Bd3 (32. Rxa5+ Kb6 $18) 32... a4) 32. Rxa5+ {[%emt 0:00:14]} Kb6 {[%emt 0:00:04] [#]} 33. Rxb5+ $1 {[%emt 0:00:06]} Rxb5 {[%emt 0:00:04]} 34. Bxb5 {[%emt 0:00:06]} Kxb5 {[%emt 0:00:04][%mdl 4096] Endgame KR-KB} 35. Be7 {[%emt 0:00:14]} Rc8 {[%emt 0:05:59]} 36. e6 {[%emt 0:01:09] Hoping for d6.} Rxc2+ {[%emt 0:01:20]} 37. Kf3 {[%emt 0:00:05] Threatens to win with d6.} Rd2 {[%emt 0:01:04]} 38. d6 {[%emt 0:00:07] White mates.} Kc6 {[%emt 0:00:13]} 39. d7 {[%emt 0:00:21]} Kc7 {[%emt 0:00:13]} 40. Kf4 {[%emt 0:00:00]} ({Weaker is} 40. d8=B+ Kc6 41. h4 Rd4 $16) 40... Rd5 {[%emt 0:00:00]} 41. d8=Q+ {[%emt 0:03:36]} ({Less strong is} 41. d8=B+ Kc6 42. g3 Rd2 $16) 41... Rxd8 {[%emt 0:01:25]} 42. Bxd8+ {[%emt 0:00:05]} Kxd8 {[%emt 0:00:06]} 43. Kxf5 {[%emt 0:00:03] K3P-KPP} Ke7 {[%emt 0:00:12]} 44. Ke5 {[%emt 0:00:04]} Ke8 {[%emt 0:01:48]} 45. Kd6 {[%emt 0:00:15]} Kd8 {[%emt 0:00:06]} 46. h4 {[%emt 0:00:35]} h5 {[%emt 0:00:18]} 47. e7+ {[%emt 0:00:19]} Ke8 {[%emt 0:00:05]} 48. Ke6 {[%emt 0:00:06] Weighted Error Value: White=0.33/Black=0.52} 1-0